fUSD/lending_fUSD_20240920
["ID","MTS","AMOUNT","RATE_DAILY","PERIOD"]
[338612046,1726794846148,161.32,0.000127,2]
[338612047,1726794846174,1819.4259,0.000127,2]
[338612048,1726794884348,150.0,0.00012047,2]
[338612049,1726794884368,150.0,0.00012047,2]
[338612050,1726794884391,150.0,0.00012047,2]
[338612051,1726794884412,159.60007761,0.00012047,2]
[338612052,1726794884435,390.39992239,0.00012047,2]
[338612053,1726794890021,168633.2222768,0.00012,2]
[338612054,1726794892813,503.9333,0.000127,2]
[338612055,1726794905984,1433.8895169,0.00012,2]
[338612056,1726794916716,161.32,0.00011906,2]
[338612057,1726794941618,179.5,0.00012443,2]
[338612058,1726794959227,500.0,0.00010068,2]
[338612059,1726794959257,500.0,0.00011164,2]
[338612060,1726795055550,935.77696025,0.000127,2]
[338612061,1726795060708,935.77696021,0.00012722,2]
[338612062,1726795112063,1050.0,0.00011,2]
[338612063,1726795182448,250.0,0.00011867,2]
[338612064,1726795203942,159.64,0.00012734,2]
[338612065,1726795206134,1000.0,0.00012736,2]
[338612066,1726795206864,1000.0,0.00012736,2]
[338612067,1726795207201,1000.0,0.00012736,2]
[338612068,1726795207664,1000.0,0.00012736,2]
[338612069,1726795208393,1000.0,0.00012736,2]
[338612070,1726795209133,1000.0,0.00012736,2]
[338612071,1726795209468,1000.0,0.00012736,2]
[338612072,1726795209841,1000.0,0.00012736,2]
[338612073,1726795210158,1000.0,0.00012736,2]
[338612074,1726795210466,1000.0,0.00012736,2]
[338612075,1726795210787,1000.0,0.00012736,2]
[338612076,1726795210956,1233.0,0.00023,120]
[338612077,1726795211110,1000.0,0.00012736,2]
[338612078,1726795211431,1000.0,0.00012736,2]
[338612079,1726795211746,1000.0,0.00012736,2]
[338612080,1726795212052,1000.0,0.00012736,2]
[338612081,1726795212754,1000.0,0.00012736,2]
[338612082,1726795213066,1000.0,0.00012736,2]
[338612083,1726795213409,1000.0,0.00012736,2]
[338612084,1726795213741,1135.9059,0.00012736,2]
[338612086,1726795308486,150.0,0.00012728,2]
[338612087,1726795335308,167.3,0.00012445,2]
[338612088,1726795336419,428.51,0.00012047,2]
[338612089,1726795396044,380.75,9.932e-05,2]
[338612090,1726795396279,380.75,0.00012196,2]
[338612091,1726795502535,155.31066673,0.00011515,2]
[338612092,1726795504431,150.0,0.00011515,2]
[338612093,1726795506617,150.09329277,0.00011515,2]
[338612094,1726795508962,150.1017953,0.00011515,2]
[338612095,1726795512420,150.0,0.00011515,2]
[338612096,1726795515873,150.04925522,0.00011515,2]
[338612097,1726795517891,150.11295196,0.00011515,2]
[338612098,1726795519596,150.0,0.00011515,2]
[338612099,1726795521573,150.11075899,0.00011515,2]
[338612100,1726795530800,748.62156824,0.000127,2]
[338612101,1726795535869,748.62156816,0.00012722,2]
[338612102,1726795567696,433.61223482,0.00011164,2]
[338612103,1726795597625,500.0,0.00011164,2]
[338612105,1726795621188,1000.0,0.00012047,2]
[338612108,1726795790284,1000.0,0.000127,2]
[338612109,1726795796204,250.0,0.00011834,2]
[338612110,1726795804026,161.45,0.00012734,2]
[338612111,1726795821325,213.0238,0.000127,2]
[338612112,1726795831041,162.87,0.00010959,2]
[338612120,1726795831687,-796.0,0.00012744,2]
[338612121,1726795831698,-796.0,0.00012744,2]
[338612122,1726795831708,-611.60884502,0.00012744,2]
[338612123,1726795831809,-184.39115498,0.00012744,2]
[338612124,1726795831819,-796.0,0.00012744,2]
[338612125,1726795831829,-796.0,0.00012744,2]
[338612126,1726795831838,-796.0,0.00012744,2]
[338612127,1726795831848,-522.32487214,0.00012744,2]
[338612128,1726795831857,-796.0,0.00012744,2]
[338612129,1726795831867,-748.62156816,0.00012744,2]
[338612130,1726795831876,-150.0,0.00012755,2]
[338612131,1726795831885,-748.62156816,0.00012767,2]
[338612132,1726795831895,-267.28002455,0.00012773,2]
[338612133,1726795831904,-150.0,0.00012776,2]
[338612134,1726795831913,-748.62156816,0.00012789,2]
[338612135,1726795831923,-150.0,0.00012789,2]
[338612136,1726795831932,-150.0,0.0001279,2]
[338612137,1726795831942,-325.82,0.0001279,2]
[338612138,1726795831951,-299.99,0.0001279,2]
[338612139,1726795831960,-2392.12,0.0001279,2]
[338612140,1726795831970,-499.99,0.0001279,2]
[338612141,1726795831979,-197.18,0.0001279,2]
[338612142,1726795831988,-250.73,0.0001279,2]
[338612143,1726795831999,-250.73,0.0001279,2]
[338612144,1726795832010,-250.73,0.0001279,2]
[338612145,1726795832019,-250.73,0.0001279,2]
[338612146,1726795832031,-250.73,0.0001279,2]
[338612147,1726795832041,-250.73,0.0001279,2]
[338612148,1726795832050,-250.73,0.0001279,2]
[338612149,1726795832061,-250.73,0.0001279,2]
[338612150,1726795832072,-250.73,0.0001279,2]
[338612151,1726795832082,-250.73,0.0001279,2]
[338612152,1726795832091,-250.73,0.0001279,2]
[338612153,1726795832100,-250.73,0.0001279,2]
[338612154,1726795832110,-250.73,0.0001279,2]
[338612155,1726795832120,-250.73,0.0001279,2]
[338612156,1726795832129,-250.73,0.0001279,2]
[338612157,1726795832138,-250.73,0.0001279,2]
[338612158,1726795832147,-250.73,0.0001279,2]
[338612159,1726795832157,-250.73,0.0001279,2]
[338612160,1726795832166,-250.73,0.0001279,2]
[338612161,1726795832175,-250.73,0.0001279,2]
[338612162,1726795832184,-1550.226,0.00012793,2]
[338612163,1726795832193,-5875.706,0.00012793,2]
[338612164,1726795832202,-2428.3429163,0.00012798,2]
[338612165,1726795832212,-325.1980005,0.00012798,2]
[338612166,1726795832222,-552.67507487,0.00012798,2]
[338612167,1726795832231,-390.2376014,0.00012798,2]
[338612168,1726795832240,-1094.23,0.00012798,2]
[338612169,1726795832250,-6737.2425468,0.00012798,2]
[338612170,1726795832259,-215.44238401,0.00012799,2]
[338612171,1726795832269,-1298.91557239,0.00012799,3]
[338612172,1726795832280,-1298.91557238,0.00012799,3]
[338612173,1726795832290,-857.33,0.00012799,2]
[338612174,1726795832299,-150.99,0.00012799,2]
[338612175,1726795832310,-192.129,0.000128,2]
[338612176,1726795832320,-504.0,0.000128,2]
[338612177,1726795832330,-14506.03827174,0.000128,2]
[338612178,1726795832341,-18440.04776704,0.000128,2]
[338612179,1726795832353,-1151.10163393,0.000128,2]
[338612180,1726795832364,-2775.63584143,0.000128,2]
[338612185,1726795837926,-470.95,0.00012793,2]
[338612186,1726795837936,-2298.90207395,0.00012793,2]
[338612187,1726795838049,-11213.27092605,0.00012793,2]
[338612188,1726795838062,-1050159.71907372,0.000128,2]
[338612189,1726795838164,-6612.25158562,0.000128,2]
[338612207,1726795839827,-1130.54686907,0.000128,2]
[338612208,1726795839839,-372.50946649,0.000128,2]
[338612209,1726795839852,-965.27858402,0.000128,2]
[338612210,1726795839863,-517.05379565,0.000128,2]
[338612211,1726795839877,-696.43581336,0.000128,2]
[338612215,1726795840122,-2090.40897658,0.000128,2]
[338612216,1726795840135,-157225.11255896,0.000128,2]
[338612218,1726795840147,-907.28163914,0.000128,2]
[338612255,1726795840898,500.0,0.00011164,2]
[338612390,1726795842871,-253.88923684,0.00012793,2]
[338612391,1726795842883,-451.22072221,0.00012793,2]
[338612392,1726795842990,-442.98104095,0.00012793,2]
[338612393,1726795843000,-6117.7455684,0.000128,2]
[338612394,1726795843011,-457.46955249,0.000128,2]
[338612395,1726795843023,-6950.22205377,0.000128,2]
[338612396,1726795843035,-17268.42652662,0.000128,2]
[338612397,1726795843110,-524.26,0.000128,2]
[338612398,1726795843121,-5102.47007079,0.000128,2]
[338612399,1726795843227,-68768.91412927,0.000128,2]
[338612406,1726795847095,314.36043996,0.000126,2]
[338612407,1726795862401,500.0,0.00010068,2]
[338612408,1726795862586,500.0,0.00011164,2]
[338612409,1726795873884,187.56,0.0001315,120]
[338612410,1726795875290,51781.77357834,0.000127,2]
[338612411,1726795875317,148246.0115735,0.000127,2]
[338612412,1726795879661,162.81,0.00012047,2]
[338612413,1726795894406,477.7915,0.000127,2]
[338612414,1726795913325,169.88,0.00012445,2]
[338612415,1726795945496,204.62,0.00012031,2]
[338612416,1726795945527,500.0,0.00011164,2]
[338612417,1726795968444,150.0,0.0001273,2]
[338612418,1726795969982,500.0,0.00011164,2]
[338612419,1726795991088,523.90155052,0.000127,2]
[338612420,1726795992651,353.68,0.00010096,2]
[338612421,1726795992884,353.68,0.0001236,2]
[338612422,1726795996075,523.90155051,0.00012722,2]
[338612423,1726795998034,192.4876,0.000127,2]
[338612424,1726796002919,225.97937957,0.000127,2]
[338612426,1726796064086,742.18,0.00011915,2]
[338612428,1726796154526,200.0,0.00011928,2]
[338612429,1726796193485,206.8853,0.000127,2]
[338612430,1726796348831,250.0,0.00012047,2]
[338612432,1726796444816,182.68,0.00012013,2]
[338612433,1726796453516,150.5888917,0.00012538,2]
[338612434,1726796464186,163.36,0.00010959,2]
[338612435,1726796466432,419.12124048,0.000127,2]
[338612436,1726796471505,419.1212404,0.00012722,2]
[338612437,1726796508424,150.0,0.00012651,2]
[338612438,1726796508463,166.81421368,0.00012615,2]
[338612439,1726796553095,327.43,0.00010009,2]
[338612440,1726796553303,327.43,0.00012273,2]
[338612441,1726796557781,276.83761802,0.0001237,2]
[338612442,1726796568401,150.0,0.00012579,2]
[338612443,1726796568454,150.0,0.00012645,2]
[338612444,1726796633032,301.27922194,0.00023,120]
[338612445,1726796648909,1792.14419021,0.00023,120]
[338612446,1726796654682,932.3039544,0.00022,60]
[338612447,1726796662400,165.59,0.00012445,2]
[338612448,1726796742038,840.0,0.00011912,2]
[338612450,1726796941719,335.29699232,0.000127,2]
[338612451,1726796945257,250.0,0.00012026,2]
[338612452,1726796946690,335.29699232,0.00012722,2]
[338612469,1726797038068,-646.34582475,0.00012744,2]
[338612470,1726797038080,-149.65417525,0.00012744,2]
[338612471,1726797038089,-796.0,0.00012744,2]
[338612472,1726797038098,-223.05348749,0.00012744,2]
[338612480,1726797039852,-572.94651251,0.00012744,2]
[338612481,1726797039862,-266.80137425,0.00012744,2]
[338612482,1726797039874,-532.09125368,0.00012744,2]
[338612483,1726797039883,-335.29699232,0.00012744,2]
[338612484,1726797039893,-282.571754,0.00012767,2]
[338612485,1726797039973,-52.72523832,0.00012767,2]
[338612486,1726797039982,-150.0,0.00012767,2]
[338612487,1726797039992,-335.29699232,0.00012789,2]
[338612488,1726797040001,-567.16858564,0.0001279,2]
[338612489,1726797040013,-3461.99456119,0.0001279,2]
[338612490,1726797040022,-163.28,0.0001279,2]
[338612491,1726797040032,-1104.86292111,0.00012793,4]
[338612527,1726797040794,-8361.21707889,0.00012793,4]
[338612528,1726797040803,-150.0,0.00012797,2]
[338612529,1726797040812,-274.1304726,0.00012798,2]
[338612530,1726797040821,-8452.7760775,0.00012798,2]
[338612531,1726797040830,-299.99,0.00012798,2]
[338612532,1726797040839,-1671.7791895,0.00012798,2]
[338612533,1726797040848,-652.02420791,0.00012799,2]
[338612534,1726797040857,-581.958,0.00012799,2]
[338612535,1726797040866,-7253.01913588,0.000128,2]
[338612536,1726797040875,-196645.41351968,0.000128,2]
[338612537,1726797040892,-65919.2496601,0.000128,2]
[338612538,1726797040903,-5589.64735101,0.000128,2]
[338612539,1726797040914,-681.26488617,0.000128,2]
[338612542,1726797042845,-7021.01472604,0.000128,2]
[338612545,1726797042856,-351.73608532,0.000128,2]
[338612547,1726797042867,-493.70742485,0.000128,2]
[338612552,1726797042963,-1979.18188074,0.000128,2]
[338612561,1726797044423,-302.76757428,0.000128,2]
[338612562,1726797044439,-301.8067844,0.000128,2]
[338612563,1726797044450,-40908.78609937,0.000128,2]
[338612574,1726797046085,-611.7165479,0.000128,2]
[338612575,1726797046096,-431.885,0.000128,2]
[338612576,1726797046107,-209773.07086473,0.000128,2]
[338612577,1726797046118,-815.6971792,0.000128,2]
[338612578,1726797046128,-5008.17589993,0.000128,2]
[338612579,1726797046139,-2138.00000118,0.000128,2]
[338612580,1726797046150,-1135.31998,0.000128,2]
[338612581,1726797046165,-568.80754221,0.000128,2]
[338612582,1726797046176,-250.10479714,0.000128,2]
[338612583,1726797046188,-582.219,0.000128,2]
[338612584,1726797046198,-11970.09052708,0.000128,2]
[338612585,1726797046209,-27821.01315486,0.000128,2]
[338612586,1726797046220,-6074.499065,0.000128,2]
[338612587,1726797073400,500.0,0.00011164,2]
[338612588,1726797073564,150.0,0.00012692,2]
[338612589,1726797079121,409.81,0.00012061,2]
[338612590,1726797079539,312.01,0.00010129,2]
[338612591,1726797079965,312.01,0.00012393,2]
[338612592,1726797081339,150.0,0.00012624,2]
[338612593,1726797089742,150.0,0.00012646,2]
[338612594,1726797089851,150.0,0.00012616,2]
[338612595,1726797094724,201.95,0.00010959,2]
[338612596,1726797101955,176.02498897,0.000127,2]
[338612597,1726797107065,500.0,0.00011164,2]
[338612598,1726797109503,500.0,0.00012534,2]
[338612599,1726797143912,526.1529,0.000127,2]
[338612600,1726797155707,4034.3142,0.000127,2]
[338612601,1726797158109,1574.275,0.000127,2]
[338612602,1726797184827,211.9333,0.000127,2]
[338612603,1726797189830,223.9422,0.000127,2]
[338612604,1726797211546,169.93,0.00011907,2]
[338612605,1726797214426,500.0,0.00011164,2]
[338612606,1726797251352,167.27,0.00012445,2]
[338612607,1726797303926,17624.47074511,0.000126,2]
[338612608,1726797306043,2923.99075415,0.000127,2]
[338612609,1726797306375,190.40177229,0.000127,2]
[338612610,1726797365989,1000.0,0.00011909,2]
[338612611,1726797401943,894.50975053,0.000127,2]
[338612612,1726797407118,894.50975047,0.00012722,2]
[338612613,1726797432989,159.4,0.00011873,2]
[338612614,1726797547997,274.98266532,0.00012428,2]
[338612615,1726797576169,250.0,0.00011855,2]
[338612616,1726797612557,162.81,0.00011862,2]
[338612617,1726797613107,289.29,9.944e-05,2]
[338612618,1726797613325,289.29,0.00012208,2]
[338612619,1726797629212,1549.0,0.00012741,2]
[338612620,1726797633923,13489.0,0.00012741,2]
[338612621,1726797639275,1147.0,0.00012741,2]
[338612623,1726797691176,157.22,0.00010959,2]
[338612624,1726797707358,150.0,0.00012554,2]
[338612625,1726797707389,150.0,0.00012561,2]
[338612626,1726797707419,150.0,0.00012715,2]
[338612627,1726797707454,150.0,0.0001254,2]
[338612628,1726797707533,150.0,0.00012562,2]
[338612629,1726797707568,150.0,0.00012606,2]
[338612630,1726797707620,150.0,0.00012552,2]
[338612631,1726797707651,150.0,0.00012688,2]
[338612632,1726797707785,150.0,0.00012708,2]
[338612633,1726797877292,715.60780043,0.000127,2]
[338612634,1726797877987,167.3,0.00012445,2]
[338612635,1726797882221,715.60780037,0.00012722,2]
[338612636,1726797902788,150.0,0.00011515,2]
[338612637,1726797903102,150.0,0.00011942,2]
[338612638,1726797903437,150.0,0.00012368,2]
[338612639,1726797905894,150.0,0.00011515,2]
[338612640,1726797911910,150.09956767,0.00011515,2]
[338612641,1726797913811,150.106188,0.00011515,2]
[338612642,1726797917248,150.0,0.00011515,2]
[338612643,1726797921587,274.14000682,0.00011515,2]
[338612644,1726797923531,150.12399647,0.00011515,2]
[338612645,1726797925890,150.2013559,0.00011515,2]
[338612646,1726797927796,150.11293283,0.00011515,2]
[338612647,1726797929673,151.11809265,0.00011515,2]
[338612648,1726797933532,150.55876747,0.00011515,2]
[338612649,1726797935430,150.31933088,0.00011515,2]
[338612650,1726797937351,163.35524547,0.00011515,2]
[338612651,1726797940788,150.09811227,0.00011515,2]
[338612653,1726798073555,1000.0,0.00011829,2]
[338612654,1726798127386,250.0,0.00011829,2]
[338612657,1726798161179,268.42,9.919e-05,2]
[338612658,1726798161421,268.42,0.00012183,2]
[338612674,1726798232289,-796.0,0.00012744,2]
[338612675,1726798232299,-796.0,0.00012744,2]
[338612676,1726798232309,-715.60780037,0.00012744,2]
[338612677,1726798232318,-150.0,0.00012747,2]
[338612678,1726798232328,-4813.47675,0.0001275,2]
[338612679,1726798232338,-168.44332464,0.00012753,2]
[338612680,1726798232348,-150.0,0.00012763,2]
[338612681,1726798232358,-150.0,0.00012765,2]
[338612682,1726798232367,-715.60780037,0.00012767,2]
[338612683,1726798232377,-150.0,0.00012786,2]
[338612684,1726798232387,-715.60780037,0.00012789,2]
[338612685,1726798232397,-299.99,0.00012789,2]
[338612686,1726798232406,-499.99,0.00012789,2]
[338612687,1726798232419,-159.48,0.0001279,2]
[338612688,1726798232429,-150.0,0.00012793,2]
[338612689,1726798232440,-449.314,0.00012794,2]
[338612690,1726798232450,-150.25,0.00012794,2]
[338612691,1726798232459,-561.238,0.00012794,2]
[338612692,1726798232469,-932.0,0.00012794,2]
[338612694,1726798232479,-817.607,0.00012794,2]
[338612696,1726798232488,-1903.0,0.00012794,2]
[338612698,1726798232497,-556.094,0.00012794,2]
[338612700,1726798232507,-249.4,0.00012794,2]
[338612701,1726798232516,-1914.0,0.00012794,2]
[338612702,1726798232526,-3355.015,0.00012794,2]
[338612703,1726798232535,-808.0,0.00012794,2]
[338612704,1726798232545,-2406.304,0.00012794,2]
[338612705,1726798232554,-151.636,0.00012794,2]
[338612706,1726798232563,-1147.0,0.00012794,2]
[338612707,1726798232573,-5866.0,0.00012794,2]
[338612708,1726798232583,-263.20630981,0.00012795,2]
[338612709,1726798232592,-153.23852717,0.00012795,2]
[338612710,1726798232601,-154.04783451,0.00012795,2]
[338612711,1726798232610,-1314.2465497,0.00012798,2]
[338612712,1726798232620,-228.4420605,0.00012798,2]
[338612713,1726798232629,-175.9980262,0.00012798,2]
[338612714,1726798232639,-1937.8644883,0.00012798,2]
[338612715,1726798232648,-154.47092541,0.00012799,2]
[338612716,1726798232657,-500.0,0.00012799,2]
[338612717,1726798232665,-366.43657644,0.00012799,2]
[338612718,1726798232674,-223.66849499,0.00012799,2]
[338612719,1726798232684,-194.35879789,0.000128,2]
[338612720,1726798232693,-3626.50956794,0.000128,2]
[338612721,1726798232702,-307442.71398344,0.000128,2]
[338612722,1726798232714,-250.0,0.000128,2]
[338612723,1726798232725,-592189.05434826,0.000128,2]
[338612725,1726798238106,-1082.926,0.00012794,2]
[338612726,1726798238116,-9845.52758442,0.000128,2]
[338612727,1726798238128,-347.10900514,0.000128,2]
[338612728,1726798238250,-309.1339115,0.000128,2]
[338612729,1726798238523,-34136.93966102,0.000128,2]
[338612730,1726798238535,-571.71617638,0.000128,2]
[338612734,1726798240207,-9561.50348983,0.000128,2]
[338612735,1726798240219,-316.2209464,0.000128,2]
[338612736,1726798240359,-13253.22423378,0.000128,2]
[338612737,1726798240370,-2523.84,0.000128,2]
[338612770,1726798243207,-7040.65125959,0.000128,2]
[338612773,1726798243219,-643.71140223,0.000128,2]
[338612775,1726798243232,-2865.81931308,0.000128,2]
[338612776,1726798243243,-7020.92902766,0.000128,2]
[338612777,1726798243356,-613.09825755,0.000128,2]
[338612778,1726798243368,-293.75433028,0.000128,2]
[338612912,1726798246195,-5262.93756272,0.000128,2]
[338612915,1726798246207,-982.5,0.000128,2]
[338612916,1726798246219,-2222.46461779,0.000128,2]
[338612917,1726798246352,-953.1922576,0.000128,2]
[338612919,1726798246363,-3510.9329748,0.000128,2]
[338612921,1726798246374,-835.76203201,0.000128,2]
[338612923,1726798246384,-3975.80907621,0.000128,2]
[338612924,1726798259343,1088.379698,0.00012544,2]
[338612927,1726798282399,3800.6539,0.000127,2]
[338612929,1726798317180,1225.513,0.000127,2]
[338612930,1726798322138,500.0,0.00011164,2]
[338612931,1726798322624,167.59,0.00012227,2]
[338612932,1726798323838,500.0,0.00012534,2]
[338612933,1726798346969,173.84944045,0.000127,2]
[338612934,1726798349996,671.7023,0.000127,2]
[338612935,1726798352516,357.80390023,0.000127,2]
[338612936,1726798352880,7500.0,0.000127,2]
[338612937,1726798357516,357.80390018,0.00012722,2]
[338612938,1726798370714,7489.1682,0.000127,2]
[338612939,1726798374830,500.0,0.00012722,2]
[338612940,1726798375542,28033.3718,0.000127,2]
[338612941,1726798381663,16341.9921,0.000127,2]
[338612942,1726798388409,1686.5549,0.000127,2]
[338612943,1726798443929,261.0233,0.000127,2]
[338612944,1726798444837,332.43295771,0.000127,2]
[338612945,1726798462310,1000.0,0.000127,2]
[338612946,1726798466124,31857.5076,0.000127,2]
[338612947,1726798480099,1217.8523,0.000127,2]
[338612948,1726798484359,186.55203593,0.000127,2]
[338612949,1726798484587,549.6508,0.000127,2]
[338612950,1726798515072,307.22,0.00011979,2]
[338612951,1726798543191,709.4122938,0.00012,2]
[338612952,1726798554257,2007.75,0.00022,60]
[338612953,1726798561900,3292.0844,0.000127,2]
[338612954,1726798575104,2000.54523883,0.000127,2]
[338612955,1726798579365,216.6719518,0.000127,2]
[338612956,1726798590096,1004.0,0.000127,2]
[338612957,1726798592682,359.9662,0.000127,2]
[338612958,1726798663348,200.0,0.00011985,2]
[338612959,1726798718509,5003.73,0.000127,2]
[338612960,1726798768504,250.0,0.00012141,2]
[338612961,1726798806773,257.6,0.00010223,2]
[338612962,1726798806979,257.6,0.00012487,2]
[338612963,1726798827816,286.24312018,0.000127,2]
[338612964,1726798832819,286.24312014,0.00012722,2]
[338612965,1726798852195,205.02,0.00012068,2]
[338612966,1726798858780,155.53,0.00010959,2]
[338612967,1726798875217,150.0,0.00022986,120]
[338612968,1726798878961,167.42993102,0.000127,2]
[338612969,1726798921689,327.84,0.00011985,2]
[338612970,1726799102827,150.0,0.00011515,2]
[338612971,1726799105089,150.0,0.00011515,2]
[338612972,1726799107216,150.0,0.00011515,2]
[338612973,1726799109494,150.0,0.00011515,2]
[338612974,1726799112922,150.00000001,0.00011515,2]
[338612975,1726799117885,150.0,0.00011515,2]
[338612976,1726799119740,150.00000001,0.00011515,2]
[338612977,1726799121722,150.0,0.00011515,2]
[338612978,1726799123635,150.0,0.00011515,2]
[338612979,1726799128585,150.0,0.00011515,2]
[338612980,1726799133558,150.0,0.00011515,2]
[338612981,1726799209223,-161.03078487,0.00012773,2]
[338612982,1726799209250,-188.02106506,0.00012795,2]
[338612983,1726799209272,-154.3112952,0.00012798,2]
[338612984,1726799209293,-203.7322442,0.00012798,2]
[338612985,1726799209315,-292.90461067,0.00012798,2]
[338612986,1726799212729,-1000.0,0.00012798,2]
[338612987,1726799216948,-300.0,0.00012798,2]
[338612988,1726799220603,510.0,0.00022876,120]
[338612991,1726799255124,-660.0,0.00012998,15]
[338612992,1726799256932,248.188,0.000127,2]
[338612993,1726799259917,840.0,0.00012152,2]
[338612994,1726799294019,2000.5204,0.000127,2]
[338612995,1726799303098,228.99449613,0.000127,2]
[338612996,1726799308510,228.99449611,0.00012722,2]
[338612997,1726799321935,250.0,0.00012083,2]
[338613001,1726799378707,155.8200599,0.000127,2]
[338613002,1726799406866,151.94,0.00010959,2]
[338613003,1726799415061,1215.0,0.000127,2]
[338613004,1726799424495,150.0,0.00022986,120]
[338613012,1726799432151,-228.99449611,0.00012744,2]
[338613013,1726799432161,-228.99449611,0.00012767,2]
[338613014,1726799432170,-228.99449611,0.00012789,2]
[338613015,1726799432179,-16.39439485,0.0001279,2]
[338613022,1726799432246,-416.94882488,0.0001279,2]
[338613023,1726799432335,-15.83578027,0.0001279,2]
[338613024,1726799432347,-5866.0,0.0001279,2]
[338613025,1726799432356,-156.4130097,0.00012798,2]
[338613026,1726799432365,-150.0,0.00012799,2]
[338613027,1726799432375,-1813.25478397,0.000128,2]
[338613028,1726799432384,-184236.72305021,0.000128,2]
[338613029,1726799432423,-340.78735789,0.000128,2]
[338613049,1726799438286,-770.28030709,0.000128,2]
[338613050,1726799438297,-18157.5300156,0.000128,2]
[338613051,1726799438309,-35939.2,0.000128,2]
[338613052,1726799438375,-519.71092168,0.000128,2]
[338613053,1726799438454,-275.96458678,0.000128,2]
[338613054,1726799438465,-1826.19952413,0.000128,2]
[338613055,1726799438542,-310.24010705,0.000128,2]
[338613067,1726799440254,-53.41227523,0.000128,2]
[338613124,1726799443345,-1147.0,0.0001279,2]
[338613125,1726799443355,-78260.60121063,0.000128,2]
[338613130,1726799446319,-1203.491268,0.000128,2]
[338613131,1726799446331,-435.93874686,0.000128,2]
[338613132,1726799446343,-1311.71999984,0.000128,2]
[338613134,1726799469561,211.63621322,0.000127,2]
[338613135,1726799481898,812.0,0.00023,120]
[338613136,1726799484028,162.81,0.00012076,2]
[338613137,1726799493330,563.9281,0.000127,2]
[338613138,1726799513952,239.41,0.00010157,2]
[338613139,1726799514158,239.41,0.00012421,2]
[338613140,1726799626423,169.88,0.00012445,2]
[338613141,1726799643115,-486.55036777,0.00012799,3]
[338613142,1726799653185,-349.71622239,0.00012798,2]
[338613143,1726799653208,-150.0,0.00012799,2]
[338613144,1726799653232,-13.73340984,0.000128,2]
[338613145,1726799669515,-650.0,0.000128,2]
[338613146,1726799717966,700.0,0.000127,2]
[338613147,1726799750179,1674.7881,0.000127,2]
[338613148,1726799763377,199.7248065,0.000127,2]
[338613149,1726799768423,199.72480649,0.00012722,2]
[338613150,1726799838417,328.0,0.00012055,2]
[338613151,1726799863437,250.0,0.00012047,2]
[338613153,1726799999026,191.85,0.00010959,2]
[338613154,1726800063234,223.36,0.00010118,2]
[338613155,1726800063642,223.36,0.00012382,2]
[338613156,1726800066333,150.0,0.00022986,120]
[338613157,1726800097764,166.86,0.00012046,2]
[338613158,1726800238712,159.77984521,0.000127,2]
[338613159,1726800243719,159.77984519,0.00012722,2]